fUST/lending_fUST_20251014
["ID","MTS","AMOUNT","RATE_DAILY","PERIOD"]
[391130592,1760380247787,-151.0,0.00024357,7]
[391130593,1760380247796,-151.0,0.00024357,7]
[391130594,1760380247806,-151.0,0.00024357,7]
[391130595,1760380247815,-241.468424,0.00024357,7]
[391130596,1760380247825,-151.0,0.00024357,7]
[391130597,1760380247834,-151.0,0.00024357,2]
[391130598,1760380247844,-152.947109,0.00024357,2]
[391130599,1760380247853,-152.13638,0.00024357,7]
[391130600,1760380247862,-166.140222,0.00024357,7]
[391130601,1760380247870,-166.140222,0.00024357,7]
[391130602,1760380247879,-166.140222,0.00024357,7]
[391130603,1760380247889,-166.14023,0.00024357,7]
[391130604,1760380247897,-151.0,0.00024357,7]
[391130605,1760380247906,-151.0,0.00024357,7]
[391130606,1760380247916,-151.0,0.00024357,7]
[391130607,1760380247927,-151.0,0.00024357,7]
[391130608,1760380247936,-151.0,0.00024357,7]
[391130609,1760380247945,-151.0,0.00024357,7]
[391130610,1760380247954,-153.964798,0.00024357,7]
[391130611,1760380247964,-151.0,0.00024357,7]
[391130612,1760380247973,-524.970652,0.00024357,7]
[391130613,1760380247983,-151.0,0.00024357,7]
[391130614,1760380247993,-524.970652,0.00024357,7]
[391130615,1760380248002,-524.970652,0.00024357,7]
[391130616,1760380248011,-524.9706576,0.00024357,7]
[391130617,1760380248020,-500.0,0.00024359,2]
[391130618,1760380248029,-900.89776231,0.00024395,2]
[391130619,1760380248039,-151.0,0.000244,8]
[391130620,1760380248048,-151.0,0.000244,9]
[391130621,1760380248057,-1000.0,0.000244,2]
[391130622,1760380248067,-1000.0,0.000244,2]
[391130623,1760380248076,-1000.0,0.000244,2]
[391130624,1760380248085,-1000.0,0.000244,2]
[391130625,1760380248094,-1000.0,0.000244,2]
[391130626,1760380248103,-1000.0,0.000244,2]
[391130627,1760380248112,-1000.0,0.000244,2]
[391130628,1760380248122,-1000.0,0.000244,2]
[391130629,1760380248131,-1000.0,0.000244,2]
[391130630,1760380248141,-1000.0,0.000244,2]
[391130631,1760380248151,-502.26379303,0.00024421,2]
[391130632,1760380248162,-1000.0,0.00024421,2]
[391130633,1760380248171,-1000.0,0.00024421,2]
[391130634,1760380248182,-1000.0,0.00024421,2]
[391130635,1760380248191,-1000.0,0.00024421,2]
[391130636,1760380248200,-1000.0,0.00024421,2]
[391130637,1760380248210,-1000.0,0.00024421,2]
[391130638,1760380248220,-1000.0,0.00024421,2]
[391130639,1760380248229,-432.33795975,0.00024421,2]
[391130640,1760380248239,-1000.0,0.00024421,2]
[391130641,1760380248249,-1001.40547861,0.00024421,2]
[391130642,1760380248258,-1000.0,0.00024421,2]
[391130643,1760380248267,-151.0,0.00024421,7]
[391130644,1760380248277,-151.0,0.00024421,7]
[391130645,1760380248287,-151.0,0.00024421,7]
[391130646,1760380248297,-151.0,0.00024421,7]
[391130647,1760380248307,-151.0,0.00024421,7]
[391130648,1760380248320,-151.0,0.00024421,7]
[391130649,1760380248329,-151.0,0.00024421,7]
[391130650,1760380248340,-151.0,0.00024421,7]
[391130651,1760380248349,-166.195044,0.00024421,7]
[391130652,1760380248359,-166.195044,0.00024421,7]
[391130653,1760380248368,-166.195044,0.00024421,7]
[391130654,1760380248378,-166.195044,0.00024421,7]
[391130655,1760380248391,-151.0,0.000245,6]
[391130656,1760380248400,-151.0,0.000245,7]
[391130657,1760380248410,-173.0,0.00024575,13]
[391130658,1760380248419,-20006.03981059,0.00024589,2]
[391130659,1760380248430,-151.0,0.00024589,2]
[391130660,1760380248439,-500.0,0.00024595,5]
[391130661,1760380248449,-200.0,0.00024599,2]
[391130662,1760380248458,-7290.11034696,0.000246,2]
[391130663,1760380248468,-402.34485587,0.000246,3]
[391130664,1760380248477,-151.0,0.000246,8]
[391130665,1760380248487,-64055.56,0.000246,3]
[391130666,1760380248496,-151.0,0.000246,7]
[391130667,1760380248505,-151.0,0.000246,7]
[391130668,1760380248514,-151.0,0.000246,7]
[391130669,1760380248523,-151.0,0.000246,7]
[391130670,1760380248532,-151.0,0.000246,7]
[391130671,1760380248541,-151.0,0.000246,7]
[391130672,1760380248550,-151.0,0.000246,7]
[391130673,1760380248559,-151.0,0.000246,7]
[391130674,1760380248570,-151.0,0.000246,7]
[391130675,1760380248579,-224.564696,0.000246,7]
[391130676,1760380248588,-151.0,0.000246,7]
[391130677,1760380248597,-151.0,0.000246,7]
[391130678,1760380248605,-151.0,0.000246,7]
[391130679,1760380248614,-166.195044,0.000246,7]
[391130680,1760380248623,-166.195044,0.000246,7]
[391130681,1760380248632,-166.195044,0.000246,7]
[391130682,1760380248641,-166.195042,0.000246,7]
[391130683,1760380248650,-151.0,0.000246,7]
[391130684,1760380248659,-151.0,0.000246,2]
[391130685,1760380248668,-306.87077929,0.000246,2]
[391130686,1760380248677,-747.19281656,0.00024616,2]
[391130687,1760380248686,-2000.0,0.00024616,2]
[391130688,1760380248695,-505.46787646,0.00024616,2]
[391130689,1760380248704,-2000.0,0.00024616,2]
[391130690,1760380248713,-2000.0,0.00024616,2]
[391130691,1760380248722,-1006.198649,0.00024616,2]
[391130692,1760380248731,-2000.0,0.00024616,2]
[391130693,1760380248740,-2000.0,0.00024616,2]
[391130694,1760380248749,-500.0,0.00024631,5]
[391130695,1760380248758,-500.0,0.00024633,2]
[391130696,1760380248767,-372.31172297,0.00024657,2]
[391130697,1760380248776,-500.0,0.00024657,2]
[391130698,1760380248785,-500.0,0.00024657,2]
[391130699,1760380248794,-511.95065036,0.00024657,2]
[391130700,1760380248803,-151.0,0.00024657,7]
[391130701,1760380248812,-151.0,0.00024657,7]
[391130702,1760380248822,-151.0,0.00024657,7]
[391130703,1760380248831,-501.7530328,0.00024657,2]
[391130704,1760380248840,-890.46718985,0.00024657,2]
[391130705,1760380248849,-500.0,0.00024657,2]
[391130706,1760380248858,-500.0,0.00024657,2]
[391130707,1760380248866,-500.0,0.00024657,2]
[391130708,1760380248875,-638.04578801,0.00024657,2]
[391130709,1760380248885,-151.0,0.00024657,7]
[391130710,1760380248894,-217.270765,0.00024657,7]
[391130711,1760380248903,-151.0,0.00024657,7]
[391130712,1760380248912,-151.0,0.00024657,7]
[391130713,1760380248921,-151.0,0.00024657,7]
[391130714,1760380248931,-151.0,0.00024657,7]
[391130715,1760380248940,-151.0,0.00024657,7]
[391130716,1760380248949,-153.01563,0.00024657,7]
[391130717,1760380248958,-151.0,0.00024657,7]
[391130718,1760380248967,-151.0,0.00024657,7]
[391130719,1760380248976,-298.385261,0.00024657,7]
[391130720,1760380248985,-748.53571005,0.00024657,2]
[391130721,1760380248994,-449.90040746,0.00024657,2]
[391130722,1760380249003,-151.0,0.00024657,7]
[391130723,1760380249013,-290.60638878,0.00024657,2]
[391130724,1760380249023,-151.0,0.00024657,7]
[391130725,1760380249032,-151.0,0.00024657,7]
[391130726,1760380249041,-500.0,0.00024657,2]
[391130727,1760380249050,-500.0,0.00024657,2]
[391130728,1760380249059,-500.0,0.00024657,2]
[391130729,1760380249070,-500.0,0.00024657,2]
[391130730,1760380249081,-500.0,0.00024657,2]
[391130731,1760380249090,-500.0,0.00024657,2]
[391130732,1760380249099,-388.55,0.00024657,2]
[391130733,1760380249108,-500.0,0.00024657,2]
[391130734,1760380249117,-500.0,0.00024657,2]
[391130735,1760380249126,-500.0,0.00024657,2]
[391130736,1760380249135,-500.0,0.00024657,2]
[391130737,1760380249144,-500.0,0.00024657,2]
[391130738,1760380249153,-500.0,0.00024657,2]
[391130739,1760380249162,-500.0,0.00024657,2]
[391130740,1760380249171,-500.0,0.00024657,2]
[391130741,1760380249179,-500.0,0.00024657,2]
[391130742,1760380249188,-500.0,0.00024657,2]
[391130743,1760380249197,-500.0,0.00024657,2]
[391130744,1760380249206,-500.0,0.00024657,2]
[391130745,1760380249214,-500.0,0.00024657,2]
[391130746,1760380249223,-500.0,0.00024657,2]
[391130747,1760380249232,-500.0,0.00024657,2]
[391130748,1760380249241,-500.0,0.00024657,2]
[391130749,1760380249250,-525.34585803,0.00024657,2]
[391130750,1760380249259,-500.0,0.00024657,2]
[391130751,1760380249268,-500.0,0.00024657,2]
[391130752,1760380249276,-500.0,0.00024657,2]
[391130753,1760380249285,-500.0,0.00024657,2]
[391130754,1760380249293,-500.0,0.00024657,2]
[391130755,1760380249302,-500.0,0.00024657,2]
[391130756,1760380249311,-500.0,0.00024657,2]
[391130757,1760380249322,-500.0,0.00024657,2]
[391130758,1760380249330,-500.0,0.00024657,2]
[391130759,1760380249339,-500.0,0.00024657,2]
[391130760,1760380249348,-217.40953799,0.00024657,2]
[391130761,1760380249356,-500.0,0.00024657,2]
[391130762,1760380249365,-318.29009773,0.00024657,2]
[391130763,1760380249374,-400.0,0.00024657,2]
[391130764,1760380249383,-2303.21,0.00024657,2]
[391130765,1760380249396,-2303.21,0.00024657,2]
[391130766,1760380249405,-2303.21,0.00024657,2]
[391130767,1760380249414,-2303.21,0.00024657,2]
[391130768,1760380249423,-2303.21,0.00024657,2]
[391130769,1760380249433,-2303.21,0.00024657,2]
[391130770,1760380249442,-2303.21,0.00024657,2]
[391130771,1760380249451,-2303.21,0.00024657,2]
[391130772,1760380249460,-1489.24689187,0.00024657,2]
[391130773,1760380249469,-2303.21,0.00024657,2]
[391130774,1760380249479,-2303.21,0.00024657,2]
[391130775,1760380249488,-2303.21,0.00024657,2]
[391130776,1760380249497,-2303.21,0.00024657,2]
[391130777,1760380249505,-2303.21,0.00024657,2]
[391130778,1760380249514,-2303.21,0.00024657,2]
[391130779,1760380249523,-2303.21,0.00024657,2]
[391130780,1760380249606,-2303.21,0.00024657,2]
[391130781,1760380249616,-2303.21,0.00024657,2]
[391130782,1760380249624,-2303.21,0.00024657,2]
[391130783,1760380249633,-2303.21,0.00024657,2]
[391130784,1760380249642,-2303.21,0.00024657,2]
[391130785,1760380249651,-2303.21,0.00024657,2]
[391130786,1760380249660,-2303.21,0.00024657,2]
[391130787,1760380249670,-2303.21,0.00024657,2]
[391130788,1760380249680,-2303.27138828,0.00024657,2]
[391130789,1760380249689,-500.0,0.00024657,2]
[391130790,1760380249698,-557.64140849,0.00024657,2]
[391130791,1760380249706,-500.0,0.00024657,2]
[391130792,1760380249715,-524.70157944,0.00024657,2]
[391130793,1760380249725,-500.0,0.00024657,2]
[391130794,1760380249734,-500.0,0.00024657,2]
[391130795,1760380249745,-500.0,0.00024657,2]
[391130796,1760380249754,-500.0,0.00024657,2]
[391130797,1760380249763,-500.0,0.00024657,2]
[391130798,1760380249772,-500.0,0.00024657,2]
[391130799,1760380249782,-500.0,0.00024657,2]
[391130800,1760380249791,-627.4177798,0.00024657,2]
[391130801,1760380249800,-1269.88,0.00024657,2]
[391130802,1760380249809,-1269.88,0.00024657,2]
[391130803,1760380249819,-1269.88,0.00024657,2]
[391130804,1760380249828,-1269.88,0.00024657,2]
[391130805,1760380249836,-1269.88,0.00024657,2]
[391130806,1760380249846,-1269.88,0.00024657,2]
[391130807,1760380249855,-1269.88,0.00024657,2]
[391130808,1760380249864,-1269.88,0.00024657,2]
[391130809,1760380249873,-1269.88,0.00024657,2]
[391130810,1760380249884,-1269.88,0.00024657,2]
[391130811,1760380249893,-1269.88,0.00024657,2]
[391130812,1760380249903,-1269.88,0.00024657,2]
[391130813,1760380249912,-1269.88,0.00024657,2]
[391130814,1760380249922,-1269.88,0.00024657,2]
[391130815,1760380249932,-1269.88,0.00024657,2]
[391130816,1760380249942,-1269.88,0.00024657,2]
[391130817,1760380249951,-1269.88,0.00024657,2]
[391130818,1760380249960,-1269.88,0.00024657,2]
[391130819,1760380249970,-1269.88,0.00024657,2]
[391130820,1760380249980,-1269.88,0.00024657,2]
[391130821,1760380249989,-1269.88,0.00024657,2]
[391130822,1760380249998,-1269.88,0.00024657,2]
[391130823,1760380250008,-1269.88,0.00024657,2]
[391130824,1760380250018,-1270.00905337,0.00024657,2]
[391130825,1760380250027,-189.71,0.00024657,2]
[391130826,1760380250037,-500.0,0.00024657,2]
[391130827,1760380250046,-500.0,0.00024657,2]
[391130828,1760380250055,-500.0,0.00024657,2]
[391130829,1760380250064,-253.40787674,0.00024657,2]
[391130830,1760380250073,-500.0,0.00024673,2]
[391130831,1760380250082,-229.860945,0.00024673,7]
[391130832,1760380250091,-151.0,0.00024675,7]
[391130833,1760380250100,-151.0,0.00024675,7]
[391130834,1760380250110,-151.0,0.000247,10]
[391130835,1760380250119,-1000.0,0.000247,2]
[391130836,1760380250128,-360.0,0.00024706,2]
[391130837,1760380250137,-1000.0,0.00024721,2]
[391130838,1760380250146,-285.0,0.00024788,2]
[391130839,1760380250156,-151.0,0.000248,6]
[391130840,1760380250165,-1223.0,0.00024847,2]
[391130841,1760380250174,-15920.3085986,0.00024858,2]
[391130842,1760380250183,-6361.8726115,0.00024858,2]
[391130843,1760380250191,-1500.0,0.00024868,2]
[391130844,1760380250200,-1502.02972003,0.00024868,2]
[391130845,1760380250209,-1000.0,0.00024868,2]
[391130846,1760380250218,-500.0,0.00024869,5]
[391130847,1760380250227,-500.52527288,0.00024873,2]
[391130848,1760380250236,-500.0,0.00024873,2]
[391130849,1760380250245,-500.0,0.00024873,2]
[391130850,1760380250254,-633.80446723,0.00024873,2]
[391130851,1760380250263,-502.44579134,0.00024873,2]
[391130852,1760380250273,-504.18830182,0.00024873,2]
[391130853,1760380250283,-535.12245885,0.00024873,2]
[391130854,1760380250292,-500.0,0.00024873,2]
[391130855,1760380250301,-500.0,0.00024873,2]
[391130856,1760380250311,-151.0,0.00024873,7]
[391130857,1760380250326,-16556.97546061,0.000249,2]
[391130858,1760380250341,-2054.61840812,0.000249,2]
[391130859,1760380250353,-8439.1806699,0.000249,2]
[391130860,1760380250370,-151.0,0.00023809,7]
[391130861,1760380250380,-590.92731968,0.000249,2]
[391130862,1760380250394,-100026.82860219,0.000249,2]
[391130863,1760380250406,-8981.40000008,0.000249,2]
[391130864,1760380250603,-3e-08,0.0002299,7]
[391130865,1760380250695,-150.99999997,0.0002299,7]
[391130866,1760380250704,-151.0,0.00023493,2]
[391130867,1760380250713,-151.0,0.00023493,2]
[391130868,1760380250724,-151.0,0.00023493,2]
[391130869,1760380250733,-151.0,0.00023493,7]
[391130870,1760380250742,-151.0,0.00023578,7]
[391130871,1760380250751,-151.0,0.00023809,7]
[391130872,1760380250760,-151.0,0.00023809,7]
[391130873,1760380250768,-170.38772579,0.00024657,2]
[391130876,1760380469758,4999.99999997,0.00020972,2]
[391130878,1760380680601,184.55,0.00015494,2]
[391130879,1760380680871,184.54,0.00015494,2]
[391130986,1760381438229,-169.12,0.0002112,2]
[391130987,1760381438239,-150.0,0.0002112,2]
[391130988,1760381438248,-186.0,0.00021288,4]
[391130989,1760381438258,-172.5,0.0002172,2]
[391130990,1760381438268,-666.0,0.00021952,2]
[391130991,1760381438277,-166.431134,0.00021968,2]
[391130992,1760381438287,-195.0,0.0002232,2]
[391130993,1760381438296,-389.8860594,0.00022868,2]
[391130994,1760381438305,-217.5,0.0002292,2]
[391130995,1760381438315,-245.0,0.00022956,2]
[391130996,1760381438324,-279.57316658,0.00022956,2]
[391130997,1760381438335,-20.42683342,0.00022956,2]
[391130998,1760381438344,-300.0,0.00022956,2]
[391130999,1760381438357,-300.0,0.00022956,2]
[391131000,1760381438374,-1200.0,0.00022956,2]
[391131001,1760381438386,-50000.0,0.00022957,2]
[391131002,1760381438395,-1200.0,0.00022957,2]
[391131003,1760381438404,-4471.99,0.00022959,10]
[391131004,1760381438413,-576.2728066,0.00022968,2]
[391131077,1760381480331,300.0,0.000155,2]
[391131078,1760381490928,300.0,0.000155,2]
[391131080,1760381646957,5000.0,0.00020972,2]
[391131081,1760381649986,-244.48845107,0.00021116,2]
[391131082,1760381669847,5000.0,0.00020972,2]
[391131083,1760381691972,244.48501313,0.00020972,2]
[391131084,1760381744028,885.29,0.00027397,120]
[391131085,1760381811689,460.35,0.00020972,2]
[391131086,1760381905815,-245.7,0.00021112,2]
[391131087,1760381905840,-88.38815326,0.00021112,2]
[391131088,1760381921479,-61.61184674,0.00021112,2]
[391131089,1760381921501,-238.38815326,0.00021117,2]
[391131090,1760381928442,634.08815326,0.00020972,2]
[391131091,1760381938604,453.90998057,0.00020575,4]
[391131092,1760381938646,453.90998057,0.00020781,4]
[391131094,1760381951068,-200.0,0.00020987,6]
[391131095,1760381972577,200.0,0.00020972,2]
[391131096,1760382011394,-256.49466964,0.00020987,6]
[391131097,1760382011416,-53.78265739,0.00021054,2]
[391131098,1760382016022,310.27732703,0.00020972,2]
[391131099,1760382071590,352.850837,0.00013699,2]
[391131100,1760382071807,352.850837,0.00020187,2]
[391131101,1760382248998,1196.13165002,0.00030592,61]
[391131102,1760382320997,264.36,0.00020176,2]
[391131104,1760382400656,261.0,0.00020267,2]
[391131105,1760382440460,272.81226727,0.00027397,120]
[391131106,1760382480538,257.67,0.00020267,2]
[391131107,1760382483867,258.36,0.00015494,2]
[391131108,1760382559497,254.39,0.00020192,2]
[391131186,1760382632708,-500.0,0.00021137,2]
[391131188,1760382632719,-129.47416567,0.00021137,2]
[391131190,1760382632729,-150.0,0.00021137,2]
[391131192,1760382632738,-193.58227828,0.00021288,4]
[391131194,1760382632747,-1000.0,0.00021706,2]
[391131196,1760382632756,-172.5,0.00021737,2]
[391131198,1760382632765,-254.70219947,0.0002176,2]
[391131200,1760382632775,-100.22935251,0.00021782,2]
[391131202,1760382632786,-314.86820924,0.00021782,2]
[391131204,1760382632800,-2182.75889568,0.00021782,2]
[391131270,1760382638339,-888.36822757,0.00021782,2]
[391131272,1760382638348,-300.0,0.0002225,2]
[391131273,1760382638357,-1200.0,0.0002225,2]
[391131274,1760382638367,-300.0,0.00022251,2]
[391131275,1760382638379,-300.0,0.00022251,2]
[391131276,1760382638389,-300.0,0.00022251,2]
[391131277,1760382638398,-300.0,0.00022251,2]
[391131278,1760382638407,-1200.0,0.00022252,2]
[391131279,1760382638417,-1987.65044789,0.00022252,2]
[391131280,1760382638426,-2193.58132442,0.00022253,2]
[391131281,1760382638438,-1157.22418228,0.00022253,2]
[391131282,1760382638447,-1549.93172867,0.00022253,2]
[391131283,1760382638457,-4401.09885122,0.00022253,2]
[391131284,1760382638467,-3558.30689064,0.00022253,2]
[391131285,1760382638476,-195.0,0.00022337,2]
[391131286,1760382638485,-1351.34056551,0.00022674,2]
[391131287,1760382638494,-2490.34911227,0.00022718,2]
[391131288,1760382638504,-1804.11223796,0.00022764,2]
[391131289,1760382638514,-1804.11223793,0.00022765,2]
[391131290,1760382638524,-1804.11223793,0.00022765,2]
[391131291,1760382638533,-1804.11223793,0.00022766,2]
[391131292,1760382638543,-17645.562069,0.00022766,2]
[391131293,1760382638552,-1804.11223793,0.00022766,2]
[391131294,1760382638562,-314.0,0.00022811,2]
[391131295,1760382638571,-1498.68985804,0.00022856,3]
[391131296,1760382638582,-790.19014196,0.00022856,3]
[391131297,1760382638591,-1297.04,0.00022856,3]
[391131298,1760382638601,-648.52,0.00022856,3]
[391131299,1760382638610,-540.43,0.00022856,3]
[391131300,1760382638619,-270.21,0.00022856,3]
[391131301,1760382638629,-810.68,0.00022856,3]
[391131302,1760382638638,-500.0,0.00022863,2]
[391131303,1760382638647,-500.0,0.00022863,2]
[391131304,1760382638657,-500.0,0.00022863,2]
[391131305,1760382638666,-500.0,0.00022863,2]
[391131306,1760382638676,-384.10619008,0.00022863,2]
[391131307,1760382638685,-183.22605,0.00022863,2]
[391131308,1760382638694,-500.0,0.00022863,2]
[391131309,1760382638704,-500.0,0.00022863,2]
[391131310,1760382638714,-500.0,0.00022863,2]
[391131311,1760382638723,-500.0,0.00022863,2]
[391131312,1760382638733,-500.0,0.00022863,2]
[391131313,1760382638742,-500.0,0.00022863,2]
[391131314,1760382638751,-500.0,0.00022863,2]
[391131315,1760382638761,-500.0,0.00022863,2]
[391131316,1760382638770,-500.0,0.00022863,2]
[391131317,1760382638779,-500.0,0.00022863,2]
[391131318,1760382638788,-500.0,0.00022863,2]
[391131319,1760382638797,-500.0,0.00022863,2]
[391131320,1760382638806,-500.0,0.00022863,2]
[391131321,1760382638816,-500.0,0.00022863,2]
[391131322,1760382638826,-500.0,0.00022863,2]
[391131323,1760382638838,-500.0,0.00022863,2]
[391131324,1760382638847,-500.0,0.00022863,2]
[391131325,1760382638856,-500.0,0.00022863,2]
[391131326,1760382638865,-500.0,0.00022863,2]
[391131327,1760382638875,-500.0,0.00022863,2]
[391131328,1760382638884,-500.0,0.00022863,2]
[391131329,1760382638894,-500.0,0.00022863,2]
[391131330,1760382638903,-500.0,0.00022863,2]
[391131331,1760382638913,-500.0,0.00022863,2]
[391131332,1760382638922,-500.0,0.00022863,2]
[391131333,1760382638932,-500.0,0.00022863,2]
[391131334,1760382638941,-500.0,0.00022863,2]
[391131335,1760382638950,-500.0,0.00022863,2]
[391131336,1760382638960,-500.0,0.00022863,2]
[391131337,1760382638970,-500.0,0.00022863,2]
[391131338,1760382638979,-500.0,0.00022863,2]
[391131339,1760382638989,-500.0,0.00022863,2]
[391131340,1760382638998,-500.0,0.00022863,2]
[391131341,1760382639008,-500.0,0.00022863,2]
[391131342,1760382639017,-500.0,0.00022863,2]
[391131343,1760382639027,-500.0,0.00022863,2]
[391131344,1760382639038,-500.0,0.00022863,2]
[391131345,1760382639047,-500.0,0.00022863,2]
[391131346,1760382639056,-500.0,0.00022863,2]
[391131347,1760382639066,-500.0,0.00022863,2]
[391131348,1760382639075,-500.0,0.00022863,2]
[391131349,1760382639084,-643.74223223,0.00022863,2]
[391131350,1760382639094,-500.0,0.00022863,2]
[391131351,1760382639104,-500.0,0.00022863,2]
[391131352,1760382639116,-500.0,0.00022863,2]
[391131353,1760382639125,-500.0,0.00022863,2]
[391131354,1760382639135,-500.0,0.00022863,2]
[391131355,1760382639145,-500.0,0.00022863,2]
[391131356,1760382639155,-456.84404018,0.00022863,2]
[391131357,1760382639167,-500.0,0.00022863,2]
[391131358,1760382639177,-500.0,0.00022863,2]
[391131359,1760382639188,-500.0,0.00022863,2]
[391131360,1760382639197,-500.0,0.00022863,2]
[391131361,1760382639207,-500.0,0.00022863,2]
[391131362,1760382639217,-500.0,0.00022863,2]
[391131363,1760382639226,-500.0,0.00022863,2]
[391131364,1760382639236,-500.0,0.00022863,2]
[391131365,1760382639246,-500.0,0.00022863,2]
[391131366,1760382639255,-500.0,0.00022863,2]
[391131367,1760382639265,-500.0,0.00022863,2]
[391131368,1760382639275,-500.0,0.00022863,2]
[391131369,1760382639284,-524.28109152,0.00022863,2]
[391131370,1760382639293,-500.0,0.00022863,2]
[391131371,1760382639303,-500.0,0.00022863,2]
[391131372,1760382639312,-500.0,0.00022863,2]
[391131373,1760382639322,-500.0,0.00022863,2]
[391131374,1760382639331,-500.0,0.00022863,2]
[391131375,1760382639341,-500.0,0.00022863,2]
[391131376,1760382639350,-500.0,0.00022863,2]
[391131377,1760382639359,-500.0,0.00022863,2]
[391131378,1760382639369,-500.0,0.00022863,2]
[391131379,1760382639379,-500.0,0.00022863,2]
[391131380,1760382639388,-500.0,0.00022863,2]
[391131381,1760382639398,-500.0,0.00022863,2]
[391131382,1760382639407,-500.0,0.00022863,2]
[391131383,1760382639417,-500.0,0.00022863,2]
[391131384,1760382639427,-500.0,0.00022863,2]
[391131385,1760382639436,-500.0,0.00022863,2]
[391131386,1760382639446,-500.0,0.00022863,2]
[391131387,1760382639455,-500.0,0.00022863,2]
[391131388,1760382639464,-500.0,0.00022863,2]
[391131389,1760382639474,-500.0,0.00022863,2]
[391131390,1760382639483,-500.0,0.00022863,2]
[391131391,1760382639492,-258.19989411,0.00022863,2]
[391131392,1760382639502,-500.0,0.00022863,2]
[391131393,1760382639513,-500.0,0.00022863,2]
[391131394,1760382639522,-500.0,0.00022865,2]
[391131395,1760382639532,-150.0,0.00022865,2]
[391131396,1760382639542,-300.0,0.00022865,2]
[391131397,1760382639552,-450.0,0.00022865,2]
[391131398,1760382639561,-600.0,0.00022865,2]
[391131399,1760382639570,-750.0,0.00022865,2]
[391131400,1760382639580,-796.96311072,0.00022865,2]
[391131401,1760382639589,-500.0,0.00022865,2]
[391131402,1760382639599,-432.69020458,0.00022865,2]
[391131403,1760382639608,-592.65837626,0.00022865,2]
[391131404,1760382639617,-271823.85898505,0.00022866,2]
[391131405,1760382639631,-17919.43172341,0.00022866,2]
[391131406,1760382639938,251.16,0.00020185,2]
[391131418,1760382640293,-6836.02,0.00022856,10]
[391131419,1760382640303,-80256.70929154,0.00022866,2]
[391131420,1760382640312,-500.0,0.00022866,5]
[391131421,1760382640322,-1862.60905987,0.00022868,2]
[391131422,1760382640331,-602.88,0.00022869,2]
[391131423,1760382640341,-500.0,0.00022873,2]
[391131424,1760382640351,-500.0,0.00022873,2]
[391131425,1760382640361,-631.11756176,0.00022873,2]
[391131426,1760382640370,-500.0,0.00022873,2]
[391131427,1760382640380,-500.0,0.00022873,2]
[391131428,1760382640389,-500.0,0.00022873,2]
[391131429,1760382640398,-500.0,0.00022873,2]
[391131430,1760382640408,-500.0,0.00022873,2]
[391131431,1760382640417,-500.0,0.00022873,2]
[391131432,1760382640427,-23748.48,0.000229,7]
[391131433,1760382640435,-217.5,0.00022937,2]
[391131434,1760382640444,-500.0,0.00022965,2]
[391131435,1760382640453,-151.0,0.00022965,2]
[391131436,1760382640462,-151.0,0.00022965,2]
[391131437,1760382640472,-500.0,0.00022965,2]
[391131438,1760382640481,-500.0,0.00022965,2]